fUST/lending_fUST_20250223
["ID","MTS","AMOUNT","RATE_DAILY","PERIOD"]
[354164040,1740312640466,-500.0,0.00013945,2]
[354164041,1740312640475,-500.0,0.00013945,2]
[354164042,1740312640485,-615.7,0.00013945,2]
[354164043,1740312640494,-151.0,0.00013945,2]
[354164044,1740312640503,-3915.37,0.00013945,2]
[354164045,1740312640513,-500.0,0.00013945,2]
[354164046,1740312640522,-500.0,0.00013945,2]
[354164047,1740312640532,-500.0,0.00013945,2]
[354164048,1740312640541,-1036.08,0.00013945,2]
[354164049,1740312640550,-8682.6,0.00013945,2]
[354164050,1740312640559,-500.0,0.00013945,2]
[354164051,1740312640568,-151.0,0.00013945,2]
[354164052,1740312640577,-151.0,0.00013945,2]
[354164053,1740312640586,-500.0,0.00013945,2]
[354164054,1740312640595,-1587.32,0.00013945,2]
[354164055,1740312640604,-1628.42,0.00013945,2]
[354164056,1740312640614,-151.0,0.00013945,2]
[354164057,1740312640623,-151.0,0.00013945,2]
[354164058,1740312640633,-500.0,0.00013945,2]
[354164059,1740312640644,-1328.1,0.00013945,2]
[354164060,1740312640653,-638.61,0.00013945,2]
[354164061,1740312640662,-151.0,0.00013945,2]
[354164062,1740312640671,-500.0,0.00013945,2]
[354164063,1740312640679,-500.0,0.00013945,2]
[354164064,1740312640689,-168.4796503,0.00013999,2]
[354164065,1740312640698,-500.0,0.00014026,2]
[354164066,1740312640707,-160.0,0.00014026,2]
[354164067,1740312640717,-151.0,0.00014027,2]
[354164068,1740312640726,-151.0,0.00014027,2]
[354164069,1740312640736,-228.892786,0.00014027,2]
[354164070,1740312640745,-151.229525,0.00014027,2]
[354164071,1740312640754,-228.892786,0.00014027,2]
[354164072,1740312640764,-554.70640465,0.00014027,2]
[354164073,1740312640774,-151.0,0.00014027,2]
[354164074,1740312640783,-541.09834073,0.00014027,2]
[354164075,1740312640792,-500.0,0.00014027,2]
[354164076,1740312640802,-500.0,0.00014027,2]
[354164077,1740312640812,-500.0,0.00014027,2]
[354164078,1740312640821,-500.0,0.00014027,2]
[354164079,1740312640831,-500.0,0.00014027,2]
[354164080,1740312640841,-500.0,0.00014027,2]
[354164081,1740312640850,-460.27266919,0.00014027,2]
[354164082,1740312640860,-500.0,0.00014027,2]
[354164083,1740312640869,-500.0,0.00014027,2]
[354164084,1740312640878,-169.48409646,0.00014027,2]
[354164085,1740312640887,-482.38312914,0.00014027,2]
[354164086,1740312640897,-500.0,0.00014027,2]
[354164087,1740312640907,-830.592608,0.00014027,2]
[354164088,1740312640916,-830.592608,0.00014027,2]
[354164089,1740312640925,-151.0,0.00014027,2]
[354164090,1740312640935,-230.405976,0.00014027,2]
[354164091,1740312640944,-500.0,0.00014027,2]
[354164092,1740312640953,-151.0,0.00014027,2]
[354164093,1740312640963,-151.0,0.00014027,2]
[354164094,1740312640972,-500.0,0.00014027,2]
[354164095,1740312640981,-500.0,0.00014027,2]
[354164096,1740312640991,-960.24,0.00014027,2]
[354164097,1740312641000,-1927.34,0.00014027,2]
[354164098,1740312641008,-749.01,0.00014027,2]
[354164099,1740312641017,-500.0,0.00014027,2]
[354164100,1740312641027,-500.0,0.00014027,2]
[354164101,1740312641037,-500.0,0.00014027,2]
[354164102,1740312641049,-500.0,0.00014027,2]
[354164103,1740312641058,-500.0,0.00014027,2]
[354164104,1740312641068,-615.7,0.00014027,2]
[354164105,1740312641077,-151.0,0.00014027,2]
[354164106,1740312641087,-3915.37,0.00014027,2]
[354164107,1740312641096,-500.0,0.00014027,2]
[354164108,1740312641105,-500.0,0.00014027,2]
[354164109,1740312641114,-500.0,0.00014027,2]
[354164110,1740312641126,-1036.08,0.00014027,2]
[354164111,1740312641135,-8682.6,0.00014027,2]
[354164112,1740312641144,-500.0,0.00014027,2]
[354164113,1740312641153,-151.257729,0.00014027,2]
[354164114,1740312641162,-151.486531,0.00014027,2]
[354164115,1740312641171,-500.0,0.00014027,2]
[354164116,1740312641180,-1587.32,0.00014027,2]
[354164117,1740312641190,-1628.42,0.00014027,2]
[354164118,1740312641200,-151.0,0.00014027,2]
[354164119,1740312641210,-151.0,0.00014027,2]
[354164120,1740312641219,-1328.1,0.00014027,2]
[354164121,1740312641228,-638.61,0.00014027,2]
[354164122,1740312641238,-151.0,0.00014027,2]
[354164123,1740312641247,-500.0,0.00014027,2]
[354164124,1740312641255,-500.0,0.00014027,2]
[354164125,1740312641264,-500.0,0.00014032,2]
[354164126,1740312641274,-160.0,0.00014039,2]
[354164127,1740312641283,-1556.77014209,0.0001404,2]
[354164128,1740312641293,-237.90476766,0.0001404,2]
[354164129,1740312641304,-275.23146651,0.00014053,2]
[354164130,1740312641313,-151.0,0.00014079,2]
[354164131,1740312641323,-151.0,0.00014079,2]
[354164132,1740312641332,-500.0,0.00014081,2]
[354164133,1740312641341,-406.93666242,0.00014081,2]
[354164134,1740312641351,-151.0,0.000141,2]
[354164135,1740312641360,-151.0,0.00014109,2]
[354164136,1740312641369,-500.0,0.00014109,2]
[354164137,1740312641378,-151.0,0.00014109,2]
[354164138,1740312641387,-627.535428,0.00014109,2]
[354164139,1740312641397,-627.535428,0.00014109,2]
[354164140,1740312641406,-4773.900121,0.00014109,2]
[354164141,1740312641416,-1036.010834,0.00014109,2]
[354164142,1740312641425,-4773.900121,0.00014109,2]
[354164143,1740312641434,-1036.010834,0.00014109,2]
[354164144,1740312641443,-151.0,0.00014109,2]
[354164145,1740312641453,-258.005899,0.00014109,2]
[354164146,1740312641462,-500.0,0.00014109,2]
[354164147,1740312641471,-258.005899,0.00014109,2]
[354164148,1740312641480,-269.5,0.00014109,2]
[354164149,1740312641563,-500.0,0.00014109,2]
[354164150,1740312641574,-500.0,0.00014109,2]
[354164151,1740312641583,-500.0,0.00014109,2]
[354164152,1740312641592,-1152.338411,0.00014109,2]
[354164153,1740312641602,-1152.338411,0.00014109,2]
[354164154,1740312641613,-291.29543644,0.00014109,2]
[354164155,1740312641622,-830.592608,0.00014109,2]
[354164156,1740312641631,-830.592608,0.00014109,2]
[354164157,1740312641641,-151.0,0.00014109,2]
[354164158,1740312641651,-500.0,0.00014109,2]
[354164159,1740312641660,-151.0,0.00014109,2]
[354164160,1740312641670,-151.0,0.00014109,2]
[354164161,1740312641679,-500.0,0.00014109,2]
[354164162,1740312641688,-500.0,0.00014109,2]
[354164163,1740312641697,-960.24,0.00014109,2]
[354164164,1740312641707,-1927.34,0.00014109,2]
[354164165,1740312641716,-749.01,0.00014109,2]
[354164166,1740312641726,-500.0,0.00014109,2]
[354164167,1740312641735,-500.0,0.00014109,2]
[354164168,1740312641744,-640.0,0.00014109,2]
[354164169,1740312641753,-500.0,0.00014109,2]
[354164170,1740312641762,-615.7,0.00014109,2]
[354164171,1740312641772,-151.0,0.00014109,2]
[354164172,1740312641782,-3915.37,0.00014109,2]
[354164173,1740312641791,-500.0,0.00014109,2]
[354164174,1740312641800,-500.0,0.00014109,2]
[354164175,1740312641809,-500.0,0.00014109,2]
[354164176,1740312641818,-1036.08,0.00014109,2]
[354164177,1740312641828,-8682.6,0.00014109,2]
[354164178,1740312641837,-500.0,0.00014109,2]
[354164179,1740312641847,-500.0,0.00014109,2]
[354164180,1740312641856,-1587.32,0.00014109,2]
[354164181,1740312641866,-1628.42,0.00014109,2]
[354164182,1740312641875,-151.0,0.00014109,2]
[354164183,1740312641884,-151.0,0.00014109,2]
[354164184,1740312641894,-1328.1,0.00014109,2]
[354164185,1740312641903,-638.61,0.00014109,2]
[354164186,1740312641912,-151.0,0.00014109,2]
[354164187,1740312641922,-500.0,0.00014109,2]
[354164188,1740312641931,-500.0,0.00014109,2]
[354164189,1740312641940,-151.0,0.00014156,2]
[354164190,1740312641949,-151.0,0.00014156,2]
[354164191,1740312641959,-151.0,0.00014159,2]
[354164192,1740312641968,-292.717052,0.00014159,2]
[354164193,1740312641977,-277.861002,0.00014159,2]
[354164194,1740312641986,-151.296802,0.00014159,2]
[354164195,1740312641994,-500.0,0.00014164,2]
[354164196,1740312642003,-151.0,0.00014191,2]
[354164197,1740312642013,-228.892786,0.00014191,2]
[354164198,1740312642022,-228.892786,0.00014191,2]
[354164199,1740312642031,-151.0,0.00014191,2]
[354164200,1740312642043,-500.0,0.00014191,2]
[354164201,1740312642054,-500.0,0.00014191,2]
[354164202,1740312642064,-500.0,0.00014191,2]
[354164203,1740312642073,-500.0,0.00014191,2]
[354164204,1740312642085,-500.0,0.00014191,2]
[354164205,1740312642094,-830.592608,0.00014191,2]
[354164206,1740312642103,-830.592608,0.00014191,2]
[354164207,1740312642112,-151.0,0.00014191,2]
[354164208,1740312642125,-500.0,0.00014191,2]
[354164209,1740312642135,-500.0,0.00014191,2]
[354164210,1740312642144,-500.0,0.00014191,2]
[354164211,1740312642153,-960.24,0.00014191,2]
[354164212,1740312642162,-1927.34,0.00014191,2]
[354164213,1740312642171,-749.01,0.00014191,2]
[354164214,1740312642180,-500.0,0.00014191,2]
[354164215,1740312642189,-500.0,0.00014191,2]
[354164216,1740312642198,-615.7,0.00014191,2]
[354164217,1740312642208,-3915.37,0.00014191,2]
[354164218,1740312642218,-500.0,0.00014191,2]
[354164219,1740312642227,-500.0,0.00014191,2]
[354164221,1740312642236,-500.0,0.00014191,2]
[354164222,1740312642245,-1036.08,0.00014191,2]
[354164223,1740312642255,-8682.6,0.00014191,2]
[354164224,1740312642264,-500.0,0.00014191,2]
[354164225,1740312642273,-500.0,0.00014191,2]
[354164226,1740312642282,-1587.32,0.00014191,2]
[354164228,1740312642291,-1628.42,0.00014191,2]
[354164230,1740312642301,-151.0,0.00014191,2]
[354164231,1740312642310,-301.673868,0.00014191,2]
[354164232,1740312642319,-1328.1,0.00014191,2]
[354164233,1740312642330,-638.61,0.00014191,2]
[354164234,1740312642339,-500.0,0.00014191,2]
[354164235,1740312642348,-500.0,0.00014191,2]
[354164236,1740312642356,-13279.54588923,0.00014194,2]
[354164238,1740312642364,-151.0,0.000142,2]
[354164239,1740312642374,-367.656953,0.0001421,2]
[354164240,1740312642383,-1556.77014209,0.0001422,2]
[354164241,1740312642392,-1000.0,0.00014221,2]
[354164242,1740312642401,-1000.0,0.00014221,2]
[354164243,1740312642410,-151.0,0.00014241,2]
[354164244,1740312642419,-627.535428,0.00014241,2]
[354164245,1740312642428,-627.535428,0.00014241,2]
[354164246,1740312642437,-151.0,0.00014241,2]
[354164247,1740312642446,-258.005899,0.00014241,2]
[354164249,1740312642455,-258.005899,0.00014241,2]
[354164251,1740312642465,-151.0,0.00014261,2]
[354164252,1740312642474,-151.0,0.00014261,2]
[354164253,1740312642483,-151.0,0.00014261,2]
[354164254,1740312642492,-4773.900121,0.00014261,2]
[354164255,1740312642502,-1036.010834,0.00014261,2]
[354164257,1740312642511,-4773.900121,0.00014261,2]
[354164259,1740312642520,-1036.010834,0.00014261,2]
[354164261,1740312642529,-151.0,0.00014261,2]
[354164263,1740312642538,-1152.338411,0.00014261,2]
[354164265,1740312642546,-1152.338411,0.00014261,2]
[354164267,1740312642556,-151.0,0.00014261,2]
[354164269,1740312642565,-151.0,0.00014261,2]
[354164271,1740312642574,-151.0,0.00014261,2]
[354164273,1740312642583,-12924.89674434,0.00014261,2]
[354164275,1740312642592,-228.892786,0.00014273,2]
[354164277,1740312642601,-228.892786,0.00014273,2]
[354164279,1740312642609,-151.0,0.00014273,2]
[354164281,1740312642619,-285.34522516,0.00014273,2]
[354164283,1740312642628,-500.0,0.00014273,2]
[354164284,1740312642637,-500.0,0.00014273,2]
[354164285,1740312642646,-500.0,0.00014273,2]
[354164286,1740312642655,-830.592608,0.00014273,2]
[354164288,1740312642663,-830.592608,0.00014273,2]
[354164290,1740312642672,-151.0,0.00014273,2]
[354164292,1740312642682,-500.0,0.00014273,2]
[354164294,1740312642691,-500.0,0.00014273,2]
[354164296,1740312642700,-500.0,0.00014273,2]
[354164298,1740312642709,-960.24,0.00014273,2]
[354164300,1740312642718,-1927.34,0.00014273,2]
[354164302,1740312642727,-749.01,0.00014273,2]
[354164304,1740312642735,-506.47276375,0.00014273,2]
[354164306,1740312642745,-500.0,0.00014273,2]
[354164308,1740312642754,-615.7,0.00014273,2]
[354164310,1740312642763,-3915.37,0.00014273,2]
[354164312,1740312642772,-500.0,0.00014273,2]
[354164314,1740312642781,-500.0,0.00014273,2]
[354164316,1740312642790,-500.0,0.00014273,2]
[354164317,1740312642800,-1036.08,0.00014273,2]
[354164318,1740312642809,-8682.6,0.00014273,2]
[354164319,1740312642818,-500.0,0.00014273,2]
[354164320,1740312642827,-345.9,0.00014273,2]
[354164321,1740312642835,-1587.32,0.00014273,2]
[354164322,1740312642844,-1628.42,0.00014273,2]
[354164323,1740312642854,-1328.1,0.00014273,2]
[354164324,1740312642863,-245.056336,0.00014273,2]
[354164325,1740312642881,-393.553664,0.00014273,2]
[354164326,1740312642889,-500.0,0.00014273,2]
[354164327,1740312642899,-500.0,0.00014273,2]
[354164328,1740312642908,-6179.44392465,0.000143,2]
[354164329,1740312642917,-151.0,0.000143,2]
[354164330,1740312642927,-151.0,0.000143,2]
[354164331,1740312642935,-151.0,0.000143,2]
[354164332,1740312642944,-361.636,0.00014332,2]
[354164333,1740312642953,-396.0,0.00014352,2]
[354164334,1740312642962,-151.0,0.00014356,2]
[354164335,1740312642972,-186.173381,0.00014356,2]
[354164336,1740312642981,-627.535428,0.00014356,2]
[354164337,1740312642990,-627.535428,0.00014356,2]
[354164338,1740312642999,-151.0,0.00014356,2]
[354164339,1740312643008,-258.005899,0.00014356,2]
[354164340,1740312643017,-500.0,0.00014356,2]
[354164341,1740312643027,-258.005899,0.00014356,2]
[354164342,1740312643036,-461.19,0.00014356,2]
[354164343,1740312643049,-265.651099,0.00014356,2]
[354164344,1740312643057,-151.0,0.00014356,2]
[354164345,1740312643066,-830.592608,0.00014356,2]
[354164346,1740312643075,-830.592608,0.00014356,2]
[354164347,1740312643086,-500.0,0.00014356,2]
[354164348,1740312643095,-500.0,0.00014356,2]
[354164349,1740312643104,-960.24,0.00014356,2]
[354164350,1740312643113,-1927.34,0.00014356,2]
[354164351,1740312643124,-749.01,0.00014356,2]
[354164352,1740312643134,-500.0,0.00014356,2]
[354164353,1740312643143,-615.7,0.00014356,2]
[354164354,1740312643152,-3915.37,0.00014356,2]
[354164355,1740312643162,-500.0,0.00014356,2]
[354164356,1740312643171,-500.0,0.00014356,2]
[354164357,1740312643180,-500.0,0.00014356,2]
[354164358,1740312643189,-1036.08,0.00014356,2]
[354164359,1740312643198,-8682.6,0.00014356,2]
[354164360,1740312643207,-500.0,0.00014356,2]
[354164361,1740312643287,-1587.32,0.00014356,2]
[354164362,1740312643296,-1628.42,0.00014356,2]
[354164363,1740312643306,-1328.1,0.00014356,2]
[354164364,1740312643315,-638.61,0.00014356,2]
[354164365,1740312643325,-500.0,0.00014356,2]
[354164366,1740312643334,-151.0,0.000144,2]
[354164367,1740312643344,-151.0,0.000144,2]
[354164368,1740312643353,-151.0,0.000144,2]
[354164369,1740312643362,-151.0,0.000144,2]
[354164370,1740312643371,-151.0,0.000144,2]
[354164371,1740312643381,-4773.900121,0.000144,2]
[354164372,1740312643390,-1036.010834,0.000144,2]
[354164373,1740312643399,-4773.900121,0.000144,2]
[354164374,1740312643408,-1036.010834,0.000144,2]
[354164375,1740312643418,-1152.338411,0.000144,2]
[354164376,1740312643427,-1152.338411,0.000144,2]
[354164377,1740312643436,-151.0,0.000144,2]
[354164378,1740312643445,-168.4796503,0.000144,2]
[354164379,1740312643455,-151.0,0.000144,2]
[354164380,1740312643464,-4991.01436992,0.000144,2]
[354164381,1740312643473,-152.35868103,0.000144,2]
[354164382,1740312643482,-152.35868103,0.000144,2]
[354164383,1740312643491,-152.35868103,0.000144,2]
[354164384,1740312643500,-152.35868103,0.000144,2]
[354164385,1740312643510,-152.35868103,0.000144,2]
[354164386,1740312643519,-152.35868103,0.000144,2]
[354164387,1740312643528,-152.35868103,0.000144,2]
[354164388,1740312643537,-152.35868103,0.000144,2]
[354164389,1740312643546,-152.35868103,0.000144,2]
[354164390,1740312643555,-152.35,0.000144,2]
[354164391,1740312643564,-177.75179453,0.000144,2]
[354164392,1740312643573,-177.75179453,0.000144,2]
[354164393,1740312643582,-177.75179453,0.000144,2]
[354164394,1740312643591,-177.75179453,0.000144,2]
[354164395,1740312643600,-177.75179453,0.000144,2]
[354164396,1740312643609,-177.75179453,0.000144,2]
[354164397,1740312643620,-177.75179453,0.000144,2]
[354164398,1740312643628,-177.75179453,0.000144,2]
[354164399,1740312643637,-177.75179453,0.000144,2]
[354164400,1740312643646,-177.75179453,0.000144,2]
[354164401,1740312643656,-177.75179453,0.000144,2]
[354164402,1740312643664,-177.75179453,0.000144,2]
[354164403,1740312643672,-177.75179453,0.000144,2]
[354164404,1740312643681,-177.75179453,0.000144,2]
[354164405,1740312643691,-177.75179453,0.000144,2]
[354164406,1740312643700,-177.75179453,0.000144,2]
[354164407,1740312643709,-177.75179453,0.000144,2]
[354164408,1740312643718,-177.75179453,0.000144,2]
[354164409,1740312643727,-177.75179453,0.000144,2]
[354164410,1740312643737,-177.75,0.000144,2]
[354164411,1740312643746,-405.99035874,0.000144,2]
[354164412,1740312643755,-405.99035874,0.000144,2]
[354164413,1740312643764,-405.99035874,0.000144,2]
[354164414,1740312643773,-405.99035874,0.000144,2]
[354164415,1740312643783,-405.99035874,0.000144,2]
[354164416,1740312643792,-405.99035874,0.000144,2]
[354164417,1740312643802,-405.99035874,0.000144,2]
[354164418,1740312643811,-405.99035874,0.000144,2]
[354164419,1740312643821,-405.99035874,0.000144,2]
[354164420,1740312643831,-405.99035874,0.000144,2]
[354164421,1740312643840,-405.99035874,0.000144,2]
[354164422,1740312643849,-405.99035874,0.000144,2]
[354164423,1740312643859,-405.99035874,0.000144,2]
[354164424,1740312643868,-405.99035874,0.000144,2]
[354164425,1740312643878,-405.99035874,0.000144,2]
[354164426,1740312643887,-405.99035874,0.000144,2]
[354164427,1740312643896,-405.99035874,0.000144,2]
[354164428,1740312643906,-405.99035874,0.000144,2]
[354164429,1740312643915,-405.99035874,0.000144,2]
[354164430,1740312643925,-405.99,0.000144,2]
[354164431,1740312643934,-947.31083706,0.000144,2]
[354164432,1740312643943,-947.31083706,0.000144,2]
[354164433,1740312643952,-947.31083706,0.000144,2]
[354164434,1740312643961,-947.31083706,0.000144,2]
[354164435,1740312643971,-947.31083706,0.000144,2]
[354164436,1740312643980,-947.31083706,0.000144,2]
[354164437,1740312643989,-947.31083706,0.000144,2]
[354164438,1740312643998,-947.31083706,0.000144,2]
[354164439,1740312644007,-947.31083706,0.000144,2]
[354164440,1740312644017,-947.31083706,0.000144,2]
[354164441,1740312644026,-947.31083706,0.000144,2]
[354164442,1740312644035,-947.31083706,0.000144,2]
[354164443,1740312644047,-947.31083706,0.000144,2]
[354164444,1740312644059,-947.31083706,0.000144,2]
[354164445,1740312644074,-947.31083706,0.000144,2]
[354164446,1740312644088,-947.31083706,0.000144,2]
[354164447,1740312644100,-947.31083706,0.000144,2]
[354164448,1740312644112,-947.31083706,0.000144,2]
[354164449,1740312644127,-947.31083706,0.000144,2]
[354164450,1740312644141,-947.31,0.000144,2]
[354164451,1740312644154,-156.10816985,0.000144,2]
[354164452,1740312644169,-156.10816985,0.000144,2]
[354164453,1740312644184,-156.10816985,0.000144,2]
[354164454,1740312644198,-156.10816985,0.000144,2]
[354164455,1740312644213,-156.10816985,0.000144,2]
[354164456,1740312644225,-156.10816985,0.000144,2]
[354164457,1740312644238,-156.10816985,0.000144,2]
[354164458,1740312644250,-156.10816985,0.000144,2]
[354164459,1740312644264,-156.10816985,0.000144,2]
[354164460,1740312644277,-156.10816985,0.000144,2]
[354164461,1740312644289,-156.10816985,0.000144,2]
[354164462,1740312644299,-156.1,0.000144,2]
[354164463,1740312644312,-218.55143779,0.000144,2]
[354164464,1740312644324,-218.55143779,0.000144,2]
[354164465,1740312644336,-218.55143779,0.000144,2]
[354164466,1740312644350,-218.55143779,0.000144,2]
[354164467,1740312644362,-218.55143779,0.000144,2]
[354164468,1740312644376,-218.55143779,0.000144,2]
[354164469,1740312644390,-218.55143779,0.000144,2]
[354164470,1740312644403,-218.55143779,0.000144,2]
[354164471,1740312644414,-218.55143779,0.000144,2]
[354164472,1740312644424,-218.55143779,0.000144,2]
[354164473,1740312644436,-218.55143779,0.000144,2]
[354164474,1740312644450,-218.55143779,0.000144,2]
[354164475,1740312644464,-218.55143779,0.000144,2]
[354164476,1740312644477,-218.55143779,0.000144,2]
[354164477,1740312644488,-218.55143779,0.000144,2]
[354164478,1740312644499,-218.55143779,0.000144,2]
[354164479,1740312644515,-218.55143779,0.000144,2]
[354164480,1740312644527,-218.55143779,0.000144,2]
[354164481,1740312644538,-218.55143779,0.000144,2]
[354164482,1740312644549,-218.55,0.000144,2]
[354164483,1740312644561,-151.0,0.000144,2]
[354164484,1740312644572,-3819.63895057,0.000144,2]
[354164485,1740312644584,-1556.77014209,0.000144,2]
[354164486,1740312644595,-153.0,0.00014415,2]
[354164487,1740312644609,-153.0,0.00014415,2]
[354164488,1740312644621,-153.0,0.00014415,2]
[354164489,1740312644632,-153.0,0.00014415,2]
[354164490,1740312644643,-153.0,0.00014415,2]
[354164491,1740312644655,-153.0,0.00014415,2]
[354164492,1740312644666,-153.0,0.00014415,2]
[354164493,1740312644678,-153.0,0.00014415,2]
[354164494,1740312644689,-153.0,0.00014415,2]
[354164495,1740312644700,-153.0,0.00014415,2]
[354164496,1740312644711,-153.0,0.00014415,2]
[354164497,1740312644723,-153.0,0.00014415,2]
[354164498,1740312644734,-153.0,0.00014415,2]
[354164499,1740312644745,-153.0,0.00014415,2]
[354164500,1740312644756,-153.0,0.00014415,2]
[354164501,1740312644768,-153.0,0.00014415,2]
[354164502,1740312644779,-153.0,0.00014415,2]
[354164503,1740312644790,-153.0,0.00014415,2]
[354164504,1740312644802,-153.0,0.00014415,2]
[354164505,1740312644814,-153.0,0.00014415,2]
[354164506,1740312644823,-153.0,0.00014415,2]
[354164507,1740312644832,-153.0,0.00014415,2]
[354164508,1740312644842,-153.0,0.00014415,2]
[354164509,1740312644851,-153.0,0.00014415,2]
[354164510,1740312644861,-153.0,0.00014415,2]
[354164511,1740312644870,-153.0,0.00014415,2]
[354164512,1740312644879,-153.0,0.00014415,2]
[354164513,1740312644888,-153.0,0.00014415,2]
[354164514,1740312644898,-153.0,0.00014415,2]
[354164515,1740312644907,-153.0,0.00014415,2]
[354164516,1740312644917,-153.0,0.00014415,2]
[354164517,1740312644927,-153.0,0.00014415,2]
[354164518,1740312644936,-153.0,0.00014415,2]
[354164519,1740312644945,-153.0,0.00014415,2]
[354164520,1740312644955,-153.0,0.00014415,2]
[354164521,1740312644964,-153.0,0.00014415,2]
[354164522,1740312644974,-153.0,0.00014415,2]
[354164523,1740312644986,-153.0,0.00014415,2]
[354164524,1740312644995,-153.0,0.00014415,2]
[354164525,1740312645140,-153.0,0.00014415,2]
[354164526,1740312645150,-153.0,0.00014415,2]
[354164527,1740312645159,-153.0,0.00014415,2]
[354164528,1740312645169,-153.0,0.00014415,2]
[354164529,1740312645179,-322.0,0.0001442,2]
[354164530,1740312645188,-500.0,0.00014437,2]
[354164531,1740312645198,-158.16965304,0.00014437,2]
[354164532,1740312645207,-551.30152822,0.00014437,2]
[354164533,1740312645218,-151.0,0.00014438,2]
[354164534,1740312645227,-151.0,0.00014438,2]
[354164536,1740312645237,-151.0,0.00014438,2]
[354164538,1740312645246,-228.892786,0.00014438,2]
[354164539,1740312645255,-228.892786,0.00014438,2]
[354164540,1740312645264,-151.0,0.00014438,2]
[354164542,1740312645274,-627.535428,0.00014438,2]
[354164543,1740312645283,-627.535428,0.00014438,2]
[354164544,1740312645293,-151.0,0.00014438,2]
[354164545,1740312645302,-258.005899,0.00014438,2]
[354164546,1740312645312,-500.0,0.00014438,2]
[354164547,1740312645322,-258.005899,0.00014438,2]
[354164548,1740312645331,-151.0,0.00014438,2]
[354164549,1740312645341,-830.592608,0.00014438,2]
[354164550,1740312645350,-830.592608,0.00014438,2]
[354164551,1740312645359,-500.0,0.00014438,2]
[354164552,1740312645368,-500.0,0.00014438,2]
[354164553,1740312645378,-960.24,0.00014438,2]
[354164554,1740312645387,-1927.34,0.00014438,2]
[354164555,1740312645397,-749.01,0.00014438,2]
[354164556,1740312645407,-500.0,0.00014438,2]
[354164557,1740312645417,-615.7,0.00014438,2]
[354164558,1740312645426,-3915.37,0.00014438,2]
[354164559,1740312645435,-500.0,0.00014438,2]
[354164560,1740312645444,-500.0,0.00014438,2]
[354164561,1740312645454,-500.0,0.00014438,2]
[354164562,1740312645463,-1036.08,0.00014438,2]
[354164563,1740312645472,-8682.6,0.00014438,2]
[354164564,1740312645481,-500.0,0.00014438,2]
[354164565,1740312645491,-1587.32,0.00014438,2]
[354164566,1740312645500,-1628.42,0.00014438,2]
[354164567,1740312645509,-1328.1,0.00014438,2]
[354164568,1740312645518,-638.61,0.00014438,2]
[354164569,1740312645527,-500.0,0.00014438,2]
[354164571,1740312645537,-500.0,0.00014473,2]
[354164573,1740312645546,-154.11533199,0.00014499,2]
[354164575,1740312645557,-12025.68705848,0.000145,5]
[354164577,1740312645566,-494.72179777,0.000145,5]
[354164579,1740312645575,-126365.50269525,0.000145,5]
[354164588,1740312645644,-169602.87131729,0.000145,5]
[354164600,1740312645747,-10841.119534,0.000145,5]
[354164606,1740312645947,-593.10438882,0.00013642,2]